fUST/lending_fUST_20250809
["ID","MTS","AMOUNT","RATE_DAILY","PERIOD"]
[378104279,1754733054567,-460.0,0.00022465,2]
[378104281,1754733054575,-662.77,0.00022465,2]
[378104283,1754733054585,-460.0,0.00022465,2]
[378104285,1754733054594,-653.28,0.00022465,2]
[378104287,1754733054603,-480.54,0.00022465,2]
[378104289,1754733054613,-460.0,0.00022465,2]
[378104291,1754733054622,-1018.79,0.00022465,2]
[378104293,1754733054631,-1360.59,0.00022465,2]
[378104295,1754733054640,-525.37822361,0.00022465,2]
[378104297,1754733054649,-1197.29,0.00022465,2]
[378104299,1754733054658,-460.0,0.00022465,2]
[378104300,1754733054667,-460.0,0.00022465,2]
[378104303,1754733054677,-460.0,0.00022465,2]
[378104304,1754733054686,-460.0,0.00022465,2]
[378104307,1754733054695,-3171.49,0.00022465,2]
[378104308,1754733054705,-591.3,0.00022465,2]
[378104310,1754733054714,-1553.13,0.00022465,2]
[378104312,1754733054723,-457.59616009,0.00022465,2]
[378104314,1754733054732,-460.0,0.00022465,2]
[378104316,1754733054742,-1031.81,0.00022465,2]
[378104318,1754733054755,-460.0,0.00022465,2]
[378104321,1754733054764,-460.0,0.00022465,2]
[378104322,1754733054773,-460.0,0.00022465,2]
[378104324,1754733054782,-460.0,0.00022465,2]
[378104326,1754733054792,-786.92,0.00022465,2]
[378104328,1754733054801,-460.0,0.00022465,2]
[378104330,1754733054811,-580.0,0.00022465,2]
[378104332,1754733054820,-460.0,0.00022465,2]
[378104334,1754733054829,-460.0,0.00022465,2]
[378104336,1754733054840,-837.25903668,0.00022465,2]
[378104338,1754733054849,-500.0,0.00022473,2]
[378104340,1754733054858,-500.0,0.00022473,2]
[378104342,1754733054867,-500.0,0.00022473,2]
[378104344,1754733054877,-500.0,0.00022473,2]
[378104346,1754733054888,-500.0,0.00022473,2]
[378104348,1754733054898,-500.0,0.00022473,2]
[378104350,1754733054907,-158.0,0.00022473,2]
[378104352,1754733054918,-500.0,0.00022473,2]
[378104354,1754733054928,-158.41797497,0.00022473,2]
[378104356,1754733054937,-151.0,0.00022473,7]
[378104358,1754733054946,-2057.221825,0.00022473,7]
[378104360,1754733054956,-2057.221825,0.00022473,7]
[378104362,1754733054965,-151.0,0.00022473,7]
[378104364,1754733054974,-176.187532,0.00022473,7]
[378104366,1754733054984,-215.40758176,0.00022473,3]
[378104368,1754733054993,-176.187532,0.00022473,7]
[378104370,1754733055003,-170.058747,0.00022473,7]
[378104372,1754733055012,-170.058747,0.00022473,7]
[378104374,1754733055021,-202.158489,0.00022473,7]
[378104376,1754733055030,-202.158489,0.00022473,7]
[378104378,1754733055040,-446.239166,0.00022473,7]
[378104380,1754733055048,-446.239166,0.00022473,7]
[378104381,1754733055060,-190.670943,0.00022473,7]
[378104382,1754733055069,-190.670943,0.00022473,7]
[378104383,1754733055078,-12666.14847857,0.00022473,3]
[378104384,1754733055087,-1992.141156,0.00022473,7]
[378104385,1754733055096,-1992.141156,0.00022473,7]
[378104386,1754733055105,-160.0,0.00022473,3]
[378104387,1754733055114,-168.0,0.00022474,2]
[378104388,1754733055123,-599.0,0.00022496,2]
[378104390,1754733055132,-151.0,0.000225,7]
[378104392,1754733055141,-324.0,0.00022506,2]
[378104394,1754733055154,-394.78644593,0.00022521,2]
[378104396,1754733055163,-1000.0,0.00022521,2]
[378104398,1754733055172,-1000.0,0.00022521,2]
[378104400,1754733055182,-1000.0,0.00022521,2]
[378104402,1754733055192,-1000.0,0.00022521,2]
[378104404,1754733055201,-1000.0,0.00022521,2]
[378104407,1754733055211,-1000.0,0.00022521,2]
[378104409,1754733055221,-1000.0,0.00022521,2]
[378104411,1754733055231,-675.13181488,0.00022521,2]
[378104413,1754733055243,-949.38652102,0.00022521,2]
[378104415,1754733055252,-1001.57607859,0.00022521,2]
[378104416,1754733055262,-386.94512381,0.00022521,2]
[378104419,1754733055272,-1000.0,0.00022521,2]
[378104421,1754733055282,-1000.0,0.00022521,2]
[378104423,1754733055291,-1000.0,0.00022521,2]
[378104425,1754733055301,-1000.0,0.00022521,2]
[378104427,1754733055310,-518.70284719,0.00022521,2]
[378104428,1754733055320,-1143.03577836,0.00022521,2]
[378104430,1754733055329,-1011.08496147,0.00022521,2]
[378104433,1754733055339,-1007.94843346,0.00022521,2]
[378104435,1754733055348,-220.55604043,0.00022521,2]
[378104437,1754733055359,-209.01178275,0.00022521,2]
[378104439,1754733055368,-1000.0,0.00022521,2]
[378104441,1754733055378,-1000.0,0.00022521,2]
[378104443,1754733055388,-1000.0,0.00022521,2]
[378104445,1754733055397,-1000.0,0.00022521,2]
[378104447,1754733055406,-177.81310254,0.00022521,2]
[378104449,1754733055415,-151.0,0.00022521,7]
[378104451,1754733055425,-151.0,0.00022521,7]
[378104453,1754733055434,-151.0,0.00022521,7]
[378104455,1754733055443,-151.0,0.00022521,7]
[378104457,1754733055453,-516.34471,0.00022521,7]
[378104459,1754733055462,-516.34471,0.00022521,7]
[378104461,1754733055472,-710.349849,0.00022521,7]
[378104463,1754733055482,-710.349849,0.00022521,7]
[378104465,1754733055491,-445.387101,0.00022521,7]
[378104467,1754733055501,-445.387101,0.00022521,7]
[378104469,1754733055510,-151.0,0.00022521,7]
[378104471,1754733055519,-2057.221825,0.00022521,7]
[378104473,1754733055529,-2057.221825,0.00022521,7]
[378104475,1754733055539,-170.058747,0.00022521,7]
[378104477,1754733055548,-170.058747,0.00022521,7]
[378104479,1754733055558,-202.158489,0.00022521,7]
[378104481,1754733055567,-202.158489,0.00022521,7]
[378104483,1754733055578,-446.239166,0.00022521,7]
[378104485,1754733055588,-446.239166,0.00022521,7]
[378104487,1754733055597,-647.650609,0.00022521,7]
[378104489,1754733055606,-647.650609,0.00022521,7]
[378104491,1754733055616,-151.0,0.00022521,7]
[378104493,1754733055625,-1992.141156,0.00022521,7]
[378104495,1754733055635,-1992.141156,0.00022521,7]
[378104497,1754733055644,-156.883488,0.00022551,7]
[378104499,1754733055654,-156.883488,0.00022551,7]
[378104501,1754733055663,-878.986196,0.00022551,7]
[378104503,1754733055672,-878.986196,0.00022551,7]
[378104506,1754733055681,-513.179356,0.00022551,7]
[378104508,1754733055690,-513.179356,0.00022551,7]
[378104510,1754733055700,-151.0,0.00022551,7]
[378104512,1754733055709,-151.0,0.00022551,7]
[378104514,1754733055719,-176.187532,0.00022551,7]
[378104516,1754733055728,-176.187532,0.00022551,7]
[378104518,1754733055737,-190.670943,0.00022551,7]
[378104520,1754733055748,-190.670943,0.00022551,7]
[378104522,1754733055761,-168.80900708,0.00022588,2]
[378104524,1754733055771,-599.0,0.00022597,2]
[378104526,1754733055781,-151.0,0.000226,7]
[378104528,1754733055791,-599.0,0.00022619,2]
[378104530,1754733055801,-599.0,0.00022619,2]
[378104532,1754733055811,-164.33052138,0.00022621,2]
[378104534,1754733055823,-151.0,0.00022622,3]
[378104536,1754733055834,-251.94972698,0.00022622,3]
[378104538,1754733055846,-151.0,0.00022622,3]
[378104540,1754733055855,-151.0,0.00022622,3]
[378104542,1754733055864,-198.0,0.00022622,3]
[378104544,1754733055875,-400.0,0.00022658,2]
[378104546,1754733055884,-11547.94213075,0.000227,2]
[378104548,1754733055893,-151.0,0.000227,7]
[378104550,1754733055903,-671.82378502,0.00022721,2]
[378104552,1754733055912,-500.0,0.00022721,2]
[378104567,1754733056040,-1000.0,0.00022721,2]
[378104569,1754733056050,-501.36665835,0.00022721,2]
[378104571,1754733056059,-1000.0,0.00022721,2]
[378104573,1754733056069,-411.12864562,0.00022721,2]
[378104575,1754733056078,-1000.0,0.00022721,2]
[378104577,1754733056089,-1000.0,0.00022721,2]
[378104579,1754733056098,-1000.0,0.00022721,2]
[378104581,1754733056107,-1008.23430521,0.00022721,2]
[378104583,1754733056117,-1000.0,0.00022721,2]
[378104585,1754733056126,-1000.0,0.00022721,2]
[378104587,1754733056136,-500.0,0.00022721,2]
[378104589,1754733056147,-1000.0,0.00022721,2]
[378104591,1754733056156,-250.0,0.00022721,2]
[378104593,1754733056165,-1003.75264012,0.00022721,2]
[378104595,1754733056175,-1000.0,0.00022721,2]
[378104597,1754733056184,-1000.0,0.00022721,2]
[378104599,1754733056194,-1000.0,0.00022721,2]
[378104601,1754733056203,-1000.0,0.00022721,2]
[378104603,1754733056212,-948.3863004,0.00022721,2]
[378104605,1754733056221,-894.7992208,0.00022721,2]
[378104607,1754733056231,-1000.0,0.00022721,2]
[378104610,1754733056240,-1000.0,0.00022721,2]
[378104612,1754733056250,-1000.0,0.00022721,2]
[378104613,1754733056260,-1000.0,0.00022721,2]
[378104615,1754733056269,-1000.0,0.00022721,2]
[378104617,1754733056278,-569.07647635,0.00022721,2]
[378104619,1754733056288,-1000.0,0.00022721,2]
[378104621,1754733056297,-1000.0,0.00022721,2]
[378104623,1754733056306,-1000.0,0.00022721,2]
[378104625,1754733056315,-1001.97502455,0.00022721,2]
[378104627,1754733056324,-1000.0,0.00022721,2]
[378104629,1754733056333,-1000.0,0.00022721,2]
[378104631,1754733056343,-1000.0,0.00022721,2]
[378104633,1754733056353,-1000.0,0.00022721,2]
[378104635,1754733056361,-1000.0,0.00022721,2]
[378104637,1754733056371,-559.01620708,0.00022721,2]
[378104639,1754733056380,-1054.29165515,0.00022721,2]
[378104642,1754733056390,-1000.0,0.00022721,2]
[378104644,1754733056399,-1000.0,0.00022721,2]
[378104645,1754733056408,-206.59055118,0.00022721,2]
[378104661,1754733056546,-793.40944882,0.00022721,2]
[378104663,1754733056556,-1000.0,0.00022721,2]
[378104665,1754733056565,-324.36602608,0.00022721,2]
[378104668,1754733056586,-153.0,0.00022274,2]
[378104670,1754733056596,-175.63397392,0.00022721,2]
[378104673,1754733056606,-193.58749014,0.00022721,2]
[378104675,1754733056615,-81.77853594,0.00022721,2]
[378104677,1754733056627,-858.5190154,0.00022721,2]
[378105608,1754733066476,678.381677,0.00013699,2]
[378105632,1754733066698,678.381677,0.00020187,2]
[378107130,1754733083073,666.0,0.00021472,2]
[378107715,1754733089139,5630.8747058,0.00021472,2]
[378108037,1754733185755,626.793251,0.00020952,2]
[378108038,1754733218438,6073.40249755,0.000199,2]
[378108039,1754733298818,456.5285523,0.00020365,2]
[378108041,1754733425576,5866.47615504,0.000199,2]
[378108042,1754733463892,24900.0,0.00020914,2]
[378108043,1754733600035,304.3523682,0.00020374,2]
[378108045,1754733624007,3557.6782495,0.00020916,2]
[378108046,1754733645945,5670.85617827,0.000199,2]
[378108050,1754733848682,-304.0,0.00021654,2]
[378108051,1754733848710,-500.0,0.00021655,2]
[378108052,1754733848738,-500.0,0.00021655,2]
[378108053,1754733848765,-500.0,0.00021655,2]
[378108054,1754733848791,-500.0,0.00021655,2]
[378108055,1754733855232,2892.0,0.000199,2]
[378108056,1754733855261,2586.11362452,0.000199,2]
[378108057,1754733855315,4913.88637548,0.00021655,2]
[378108058,1754733855342,564.2272488,0.00021655,2]
[378108059,1754733859804,1000.0,0.00020913,2]
[378108060,1754733869736,2400.9951595,0.0002108,2]
[378108061,1754733895114,400.0,0.00028,120]
[378108062,1754733901418,202.9015788,0.00020421,2]
[378108063,1754733906791,400.0,0.0003,120]
[378108064,1754733937155,400.0,0.0003,120]
[378108065,1754734007941,277.42901,0.00020909,2]
[378108066,1754734051396,3054.4470029,0.000199,2]
[378108067,1754734051423,2062.49585835,0.000199,2]
[378108068,1754734051783,5116.94286124,0.00021655,2]
[378108069,1754734125783,313.396626,0.00020908,2]
[378108071,1754734161174,7.16465441,0.00013699,2]
[378108072,1754734161197,603.37885459,0.00013699,2]
[378108073,1754734161367,610.543509,0.00020187,2]
[378108075,1754734180079,201769.0,0.00031694,30]
[378108132,1754734232818,-379.84935533,0.00021804,2]
[378108134,1754734232828,-184.0,0.00021816,2]
[378108136,1754734232838,-300.0,0.00021816,2]
[378108138,1754734232847,-300.0,0.00021816,2]
[378108139,1754734232857,-300.0,0.00021816,2]
[378108141,1754734232867,-1200.0,0.00021816,2]
[378108143,1754734232877,-32300.0,0.00021817,2]
[378108145,1754734232886,-300.0,0.00021903,2]
[378108147,1754734232896,-1000.9,0.00021907,3]
[378108149,1754734232906,-500.45,0.00021907,3]
[378108150,1754734232915,-250.23,0.00021907,3]
[378108152,1754734232926,-750.7,0.00021907,3]
[378108154,1754734232935,-339.97,0.00021907,10]
[378108156,1754734232944,-283.31,0.00021907,10]
[378108158,1754734232954,-236.09,0.00021907,10]
[378108160,1754734232964,-307.87615451,0.00021917,2]
[378108161,1754734232973,-460.0,0.00021917,2]
[378108163,1754734232983,-461.31786231,0.00021917,2]
[378108165,1754734232992,-500.0,0.00021917,2]
[378108167,1754734233002,-460.0,0.00021917,2]
[378108169,1754734233012,-577.79053562,0.00021917,2]
[378108170,1754734233021,-461.83560649,0.00021917,2]
[378108172,1754734233031,-460.0,0.00021917,2]
[378108174,1754734233041,-460.0,0.00021917,2]
[378108176,1754734233051,-460.0,0.00021917,2]
[378108178,1754734233061,-460.0,0.00021917,2]
[378108179,1754734233070,-461.85449889,0.00021917,2]
[378108181,1754734233079,-460.0,0.00021917,2]
[378108183,1754734233088,-460.0,0.00021917,2]
[378108184,1754734233097,-461.88360051,0.00021917,2]
[378108186,1754734233106,-89.1305487,0.00021917,2]
[378108250,1754734238694,-370.8694513,0.00021917,2]
[378108251,1754734238704,-460.0,0.00021917,2]
[378108252,1754734238713,-460.0,0.00021917,2]
[378108253,1754734238723,-460.0,0.00021917,2]
[378108254,1754734238732,-220.47007244,0.00021917,7]
[378108255,1754734238742,-460.0,0.00021917,2]
[378108256,1754734238751,-460.0,0.00021917,2]
[378108257,1754734238761,-460.0,0.00021917,2]
[378108258,1754734238770,-460.0,0.00021917,2]
[378108259,1754734238779,-460.0,0.00021917,2]
[378108260,1754734238788,-461.43536599,0.00021917,2]
[378108261,1754734238797,-460.0,0.00021917,2]
[378108262,1754734238807,-460.0,0.00021917,2]
[378108263,1754734238816,-460.0,0.00021917,2]
[378108264,1754734238825,-472.74285601,0.00021917,2]
[378108265,1754734238834,-460.0,0.00021917,2]
[378108266,1754734238843,-460.0,0.00021917,2]
[378108267,1754734238852,-460.0,0.00021917,2]
[378108268,1754734238862,-460.0,0.00021917,2]
[378108269,1754734238871,-460.0,0.00021917,2]
[378108270,1754734238884,-460.0,0.00021917,2]
[378108271,1754734238893,-460.0,0.00021917,2]
[378108272,1754734238903,-150.88458714,0.00021917,2]
[378108273,1754734238915,-586.36110822,0.00021917,2]
[378108274,1754734238925,-460.0,0.00021917,2]
[378108275,1754734238935,-460.0,0.00021917,2]
[378108276,1754734238944,-460.0,0.00021917,2]
[378108277,1754734238954,-460.0,0.00021917,2]
[378108278,1754734238964,-1000.0,0.00021917,2]
[378108279,1754734238973,-460.0,0.00021917,2]
[378108280,1754734238983,-460.0,0.00021917,2]
[378108281,1754734239181,-460.0,0.00021917,2]
[378108282,1754734239192,-460.0,0.00021917,2]
[378108283,1754734239203,-504.28084765,0.00021917,2]
[378108284,1754734239212,-500.0,0.00021917,2]
[378108285,1754734239221,-460.0,0.00021917,2]
[378108286,1754734239230,-460.0,0.00021917,2]
[378108287,1754734239239,-460.0,0.00021917,2]
[378108288,1754734239248,-460.0,0.00021917,2]
[378108289,1754734239257,-468.42027887,0.00021917,2]
[378108290,1754734239266,-460.0,0.00021917,2]
[378108291,1754734239276,-460.0,0.00021917,2]
[378108292,1754734239285,-460.0,0.00021917,2]
[378108293,1754734239293,-460.0,0.00021917,2]
[378108294,1754734239305,-460.0,0.00021917,2]
[378108295,1754734239314,-460.0,0.00021917,2]
[378108296,1754734239324,-460.0,0.00021917,2]
[378108297,1754734239336,-460.0,0.00021917,2]
[378108298,1754734239356,-460.0,0.00021917,2]
[378108299,1754734239378,-460.0,0.00021917,2]
[378108300,1754734239389,-590.55100549,0.00021917,2]
[378108301,1754734239401,-460.0,0.00021917,2]
[378108302,1754734239416,-460.0,0.00021917,2]
[378108303,1754734239425,-460.0,0.00021917,2]
[378108304,1754734239435,-460.0,0.00021917,2]
[378108305,1754734239445,-460.0,0.00021917,2]
[378108306,1754734239455,-460.0,0.00021917,2]
[378108307,1754734239466,-460.0,0.00021917,2]
[378108308,1754734239476,-675.96,0.00021917,2]
[378108309,1754734239487,-460.0,0.00021917,2]
[378108310,1754734239497,-460.0,0.00021917,2]
[378108311,1754734239507,-460.0,0.00021917,2]
[378108312,1754734239517,-470.23,0.00021917,2]
[378108313,1754734239526,-460.0,0.00021917,2]
[378108314,1754734239535,-460.0,0.00021917,2]
[378108315,1754734239544,-461.41192486,0.00021917,2]
[378108316,1754734239553,-460.0,0.00021917,2]
[378108317,1754734239562,-460.0,0.00021917,2]
[378108318,1754734239571,-460.0,0.00021917,2]
[378108319,1754734239580,-460.0,0.00021917,2]
[378108320,1754734239590,-460.0,0.00021917,2]
[378108321,1754734239598,-460.0,0.00021917,2]
[378108322,1754734239606,-460.0,0.00021917,2]
[378108323,1754734239616,-500.47,0.00021917,2]
[378108324,1754734239625,-460.0,0.00021917,2]
[378108325,1754734239635,-462.68389308,0.00021917,2]
[378108326,1754734239644,-460.0,0.00021917,2]
[378108327,1754734239654,-460.0,0.00021917,2]
[378108328,1754734239664,-460.0,0.00021917,2]
[378108329,1754734239674,-460.0,0.00021917,2]
[378108330,1754734239683,-225.0266746,0.00021917,2]
[378108331,1754734239693,-460.0,0.00021917,2]
[378108332,1754734239703,-927.73,0.00021917,2]
[378108333,1754734239715,-460.0,0.00021917,2]
[378108334,1754734239738,-461.09977601,0.00021917,2]
[378108335,1754734239760,-460.0,0.00021917,2]
[378108336,1754734239778,-460.0,0.00021917,2]
[378108337,1754734239798,-460.0,0.00021917,2]
[378108338,1754734239807,-460.0,0.00021917,2]
[378108339,1754734239819,-460.0,0.00021917,2]
[378108340,1754734239829,-468.18629682,0.00021917,2]
[378108341,1754734239838,-460.0,0.00021917,2]
[378108342,1754734239849,-460.0,0.00021917,2]
[378108343,1754734239860,-460.0,0.00021917,2]
[378108344,1754734239870,-460.0,0.00021917,2]
[378108345,1754734239879,-460.0,0.00021917,2]
[378108346,1754734239889,-460.0,0.00021917,2]
[378108347,1754734239898,-460.0,0.00021917,2]
[378108348,1754734239908,-500.0,0.00021917,2]
[378108349,1754734239918,-500.0,0.00021917,2]
[378108350,1754734239928,-500.0,0.00021917,2]
[378108351,1754734239937,-397.97,0.00021917,2]
[378108352,1754734239947,-460.0,0.00021917,2]
[378108353,1754734239956,-460.0,0.00021917,2]
[378108354,1754734239966,-460.0,0.00021917,2]
[378108355,1754734239975,-460.0,0.00021917,2]
[378108356,1754734239983,-460.0,0.00021917,2]
[378108357,1754734239991,-351.82013527,0.00021917,2]
[378108358,1754734239999,-460.0,0.00021917,2]
[378108359,1754734240010,-460.0,0.00021917,2]
[378108361,1754734240019,-460.0,0.00021917,2]
[378108362,1754734240030,-224.55169105,0.00021917,2]
[378108363,1754734240040,-460.0,0.00021917,2]
[378108364,1754734240050,-460.0,0.00021917,2]
[378108365,1754734240060,-460.0,0.00021917,2]
[378108366,1754734240069,-460.0,0.00021917,2]
[378108367,1754734240079,-878.18,0.00021917,2]
[378108368,1754734240088,-765.1,0.00021917,2]
[378108369,1754734240098,-460.0,0.00021917,2]
[378108370,1754734240107,-460.0,0.00021917,2]
[378108371,1754734240117,-184.32857246,0.00021917,2]
[378108372,1754734240127,-460.0,0.00021917,2]
[378108373,1754734240139,-443.36510423,0.00021917,2]
[378108375,1754734240149,-460.0,0.00021917,2]
[378108377,1754734240159,-460.0,0.00021917,2]
[378108378,1754734240170,-285.52361648,0.00021918,2]
[378108379,1754734240180,-1412.98641416,0.00021944,2]
[378108381,1754734240189,-500.0,0.00021973,2]
[378108382,1754734240198,-503.98869274,0.00021973,2]
[378108383,1754734240208,-331.51668441,0.00021973,2]
[378108384,1754734240217,-500.0,0.00021973,2]
[378108385,1754734240226,-500.0,0.00021973,2]
[378108386,1754734240236,-500.0,0.00021973,2]
[378108387,1754734240246,-500.0,0.00021973,2]
[378108388,1754734240255,-500.0,0.00021973,2]
[378108389,1754734240264,-500.0,0.00021973,2]
[378108390,1754734240274,-500.0,0.00021973,2]
[378108391,1754734240283,-500.0,0.00021973,2]
[378108392,1754734240292,-516.7285694,0.00021973,2]
[378108393,1754734240303,-500.0,0.00021973,2]
[378108394,1754734240315,-500.0,0.00021973,2]
[378108395,1754734240325,-524.05187701,0.00021973,2]
[378108396,1754734240335,-500.0,0.00021973,2]
[378108397,1754734240345,-500.0,0.00021973,2]
[378108398,1754734240354,-509.06019207,0.00021973,2]
[378108399,1754734240363,-461.15849543,0.00021973,2]
[378108400,1754734240372,-505.63974196,0.00021973,2]
[378108401,1754734240384,-500.0,0.00021973,2]
[378108402,1754734240398,-500.0,0.00021973,2]
[378108404,1754734240411,-500.0,0.00021973,2]
[378108405,1754734240420,-100000.0,0.0002199,2]
[378108406,1754734240429,-175.55,0.00022,2]
[378108407,1754734240439,-1212.07,0.00022,2]
[378108408,1754734240449,-1713.00182378,0.00022091,2]
[378108409,1754734240458,-500.0,0.00022172,2]
[378108410,1754734240467,-500.0,0.00022172,2]
[378108411,1754734240477,-500.0,0.00022172,2]
[378108412,1754734240491,-235.13132738,0.00022172,2]
[378108413,1754734240500,-500.0,0.00022172,2]
[378108414,1754734240509,-500.0,0.00022172,2]
[378108415,1754734240518,-500.0,0.00022172,2]
[378108416,1754734240528,-500.0,0.00022172,2]
[378108417,1754734240537,-500.0,0.00022172,2]
[378108418,1754734240547,-500.0,0.00022172,2]
[378108419,1754734240557,-500.0,0.00022172,2]
[378108421,1754734240566,-500.0,0.00022172,2]
[378108422,1754734240576,-614.91343758,0.00022172,2]
[378108423,1754734240585,-500.0,0.00022173,2]
[378108424,1754734240594,-500.0,0.00022173,2]
[378108425,1754734240604,-500.0,0.00022173,2]
[378108426,1754734240613,-500.0,0.00022173,2]
[378108427,1754734240623,-500.0,0.00022173,2]
[378108428,1754734240632,-150.0,0.00022173,2]
[378108429,1754734240641,-500.0,0.00022173,2]
[378108430,1754734240651,-500.0,0.00022173,2]
[378108431,1754734240661,-158.41591904,0.00022173,2]
[378108432,1754734240670,-500.0,0.00022173,2]
[378108433,1754734240679,-160.01769361,0.00022173,2]
[378108434,1754734240689,-500.0,0.00022173,2]
[378108435,1754734240699,-500.0,0.00022173,2]
[378108436,1754734240708,-158.41737852,0.00022173,2]
[378108437,1754734240717,-160.41815299,0.00022173,2]
[378108438,1754734240727,-160.01716645,0.00022173,2]
[378108439,1754734240737,-158.41500275,0.00022173,2]
[378108440,1754734240746,-160.0,0.00022173,2]
[378108441,1754734240755,-157.0,0.00022173,2]
[378108442,1754734240765,-185.2,0.00022173,2]
[378108443,1754734240774,-315.30716032,0.00022173,2]
[378108444,1754734240783,-500.0,0.00022173,2]
[378108445,1754734240794,-500.0,0.00022173,2]
[378108446,1754734240803,-500.0,0.00022173,2]
[378108447,1754734240812,-500.0,0.00022173,2]
[378108448,1754734240822,-500.0,0.00022173,2]
[378108449,1754734240831,-500.0,0.00022173,2]
[378108450,1754734240840,-500.0,0.00022173,2]
[378108451,1754734240850,-500.0,0.00022173,2]
[378108452,1754734240859,-458.90736978,0.00022173,2]
[378108453,1754734240869,-500.0,0.00022173,2]
[378108454,1754734240878,-500.0,0.00022173,2]
[378108455,1754734240887,-392.07726344,0.00022173,2]
[378108456,1754734240897,-500.0,0.00022173,2]
[378108457,1754734240906,-500.0,0.00022173,2]
[378108458,1754734240917,-500.0,0.00022173,2]
[378108459,1754734240926,-500.0,0.00022173,2]
[378108460,1754734240935,-500.0,0.00022173,2]
[378108461,1754734240945,-500.0,0.00022173,2]
[378108462,1754734240954,-500.0,0.00022173,2]
[378108463,1754734240964,-500.0,0.00022173,2]
[378108464,1754734240973,-500.0,0.00022173,2]
[378108465,1754734240982,-500.0,0.00022173,2]
[378108466,1754734240992,-500.0,0.00022173,2]
[378108467,1754734241001,-500.0,0.00022173,2]
[378108468,1754734241010,-419.10996033,0.00022173,2]
[378108469,1754734241019,-500.0,0.00022173,2]
[378108470,1754734241028,-151.0,0.00022177,2]
[378108471,1754734241037,-500.0,0.00022177,2]
[378108472,1754734241047,-500.0,0.00022177,2]
[378108473,1754734241056,-151.0,0.00022177,2]
[378108474,1754734241066,-500.0,0.00022177,2]
[378108475,1754734241075,-151.0,0.00022177,2]
[378108476,1754734241085,-300.0,0.00022177,2]
[378108477,1754734241094,-151.0,0.00022177,2]
[378108478,1754734241104,-500.0,0.00022177,2]
[378108479,1754734241113,-300.0,0.00022177,2]
[378108480,1754734241122,-500.0,0.00022177,2]
[378108481,1754734241133,-151.0,0.00022177,2]
[378108482,1754734241143,-500.0,0.00022177,2]
[378108483,1754734241152,-151.0,0.00022177,2]
[378108484,1754734241161,-151.0,0.00022177,2]
[378108485,1754734241171,-305.10817957,0.00022177,2]
[378108486,1754734241191,-151.0,0.00022177,2]
[378108487,1754734241210,-500.0,0.00022177,2]
[378108488,1754734241219,-151.0,0.00022177,2]
[378108489,1754734241228,-151.0,0.00022177,2]
[378108490,1754734241237,-500.0,0.00022177,2]
[378108491,1754734241246,-151.0,0.00022177,2]
[378108492,1754734241255,-200.0,0.00022177,2]
[378108493,1754734241265,-264.37813709,0.00022177,2]
[378108494,1754734241274,-151.0,0.00022177,2]
[378108495,1754734241283,-151.0,0.00022177,2]
[378108496,1754734241292,-151.0,0.00022177,2]
[378108497,1754734241301,-151.0,0.00022177,2]
[378108498,1754734241310,-151.0,0.00022177,2]
[378108499,1754734241319,-151.0,0.00022177,2]